bitfinex-derivatives/quotes_SOLF0:USTF0_20251108
["timestamp","ask_amount","ask_price","bid_price","bid_amount"]
[1762604345665,0.03982415,159.16,159.14,3.13]
[1762604346275,3.13,159.15,159.12,0.04611786]
[1762604346772,3.13,159.15,159.12,3.17611786]
[1762604346977,0.03982415,159.16,159.12,3.17611786]
[1762604347371,0.03982415,159.16,159.14,8.7884]
[1762604347773,0.03982415,159.16,159.14,3.13]
[1762604349081,3.16982415,159.16,159.12,3.17611786]
[1762604350181,0.03982415,159.16,159.14,3.13]
[1762604351281,0.03982415,159.16,159.14,8.7884]
[1762604352480,0.03982415,159.16,159.14,5.6584]
[1762604354383,0.03982415,159.16,159.14,8.7884]
[1762604355282,0.03982415,159.16,159.15,3.13]
[1762604358578,3.19988869,159.23,159.15,3.13]
[1762604358782,6.32988869,159.23,159.15,3.13]
[1762604358976,3.13,159.22,159.15,3.13]
[1762604359183,3.13,159.19,159.12,3.13]
[1762604359580,3.17343786,159.17,159.14,0.04202504]
[1762604361784,3.13,159.16,159.07,3.13]
[1762604361988,12.36523143,159.15,159.07,3.13]
[1762604362290,3.13,159.15,159.07,3.13]
[1762604362785,0.04281032,159.13,159.09,3.17007637]
[1762604363583,0.04281032,159.13,159.09,8.82997637]
[1762604363888,0.04281032,159.13,159.1,3.13]
[1762604364586,0.04281032,159.13,159.12,3.13]
[1762604368187,0.04281032,159.13,159.11,8.7893]
[1762604369692,0.04281032,159.13,159.12,3.13]
[1762604387599,5.6564,159.2,159.14,3.1]
[1762604387600,2.04760286,159.2,159.14,3.1]
[1762604388407,3.04,159.22,159.18,3.1]
[1762604388710,3.08441518,159.22,159.18,3.14605304]
[1762604392214,3.08441518,159.22,159.19,3.1]
[1762604392411,3.04,159.2,159.18,0.04605304]
[1762604392605,5.08760286,159.2,159.18,0.04605304]
[1762604392806,5.08760286,159.2,159.18,3.14605304]
[1762604393518,2.04760286,159.2,159.18,3.14605304]
[1762604394213,5.08760286,159.2,159.18,3.14605304]
[1762604394717,3.04,159.19,159.18,0.04605304]
[1762604395318,3.04,159.18,159.11,3.1]
[1762604395521,5.08760286,159.16,159.11,3.1]
[1762604396314,0.04814083,159.15,159.13,8.7587]
[1762604397216,0.04814083,159.15,159.14,3.1]
[1762604400127,3.04,159.21,159.16,3.1]
[1762604400823,2.04760286,159.2,159.16,3.1]
[1762604401025,5.13247731,159.2,159.16,3.14144753]
[1762604401918,5.13247731,159.2,159.17,2.93]
[1762604403524,0.04487445,159.2,159.19,2.93]
[1762604404614,2.04760286,159.27,159.21,2.93]
[1762604404811,2.04760286,159.27,159.13,11.3173]
[1762604404812,3.04,159.26,159.17,2.93]
[1762604405019,2.04760286,159.21,159.17,2.93]
[1762604405220,5.08760286,159.21,159.17,2.93]
[1762604405420,3.04,159.2,159.17,2.93]
[1762604405622,3.08777731,159.2,159.17,2.97254024]
[1762604405817,3.08777731,159.2,159.17,0.04254024]
[1762604407019,3.08777731,159.2,159.17,2.97254024]
[1762604407319,3.08777731,159.2,159.17,0.04254024]
[1762604408715,3.08777731,159.2,159.17,2.97254024]
[1762604409627,3.08777731,159.2,159.17,0.04254024]
[1762604414035,3.04,159.18,159.09,21.61513373]
[1762604414326,5.76976467,159.23,159.09,21.61513373]
[1762604414327,3.04,159.14,159.09,21.61513373]
[1762604414529,3.04,159.14,159.09,2.93]
[1762604414730,3.04,159.14,159.06,2.93]
[1762604414930,3.04,159.14,159.05,2.04760286]
[1762604414931,3.0797304,159.12,159.08,2.97769486]
[1762604415725,3.0797304,159.12,159.08,0.04769486]
[1762604415932,3.04,159.1,159.08,0.04769486]
[1762604417731,5.08760286,159.09,159.08,0.04769486]
[1762604418034,3.04,159.08,159.02,2.93]
[1762604418738,3.04,159.08,159.01,5.6629]
[1762604418937,3.04,159.05,159.03,0.04663335]
[1762604419237,3.04,159.05,159.02,0.04123093]
[1762604419739,3.04,159.05,159.02,2.97123093]
[1762604420630,3.04,159.05,159.02,0.04123093]
[1762604421331,0.04413986,159.06,159.02,2.97123093]
[1762604421537,0.04413986,159.06,159.03,2.93]
[1762604422344,0.04413986,159.06,159.05,2.93]
[1762604426643,67.04,159.14,159.07,2.93]
[1762604426848,3.04,159.14,159.07,2.93]
[1762604427546,0.04404592,159.12,159.1,2.93]
[1762604427948,0.04404592,159.12,159.11,5.6593]
[1762604428148,0.04404592,159.12,159.11,8.5893]
[1762604428743,0.04404592,159.12,159.11,2.93]
[1762604431744,3.04,159.17,159.13,3.19]
[1762604432646,0.04471336,159.17,159.15,3.19]
[1762604432952,0.04471336,159.17,159.16,3.19]
[1762604433556,270.58216257,159.24,159.16,3.19]
[1762604433746,3.12,159.23,159.19,8.8464]
[1762604434751,3.16082158,159.23,159.19,8.89129331]
[1762604434953,3.16082158,159.23,159.2,3.19]
[1762604435146,0.04082158,159.23,159.21,3.19]
[1762604435356,0.04082158,159.23,159.2,8.8461]
[1762604435547,0.04082158,159.23,159.21,8.8458]
[1762604435853,0.04082158,159.23,159.22,3.19]
[1762604437055,3.12,159.31,159.25,3.19]
[1762604437354,3.12,159.31,159.24,5.6548]
[1762604437549,3.12,159.3,159.22,3.19]
[1762604437858,3.12,159.27,159.24,0.04179602]
[1762604443054,6.32013863,159.27,159.24,0.04179602]
[1762604443358,3.1,159.26,159.24,0.04179602]
[1762604450158,3.1,159.25,159.24,0.04179602]
[1762604451550,3.1,159.23,159.17,5.6571]
[1762604451754,3.1,159.23,159.14,2.96]
[1762604452258,3.1,159.21,159.17,2.96]
[1762604452560,0.0422388,159.21,159.17,3.00150628]
[1762604453161,0.0422388,159.21,159.19,5.6566]
[1762604453555,0.0422388,159.21,159.17,3.00150628]
[1762604453752,0.0422388,159.21,159.18,5.6568]
[1762604453959,0.0422388,159.21,159.18,8.6168]
[1762604454658,0.0422388,159.21,159.19,2.96]
[1762604455158,0.0422388,159.21,159.18,8.6168]
[1762604455561,0.0422388,159.21,159.2,2.96]
[1762604460162,8.7532,159.29,159.2,2.96]
[1762604460458,3.1,159.29,159.23,2.96]
[1762604460862,3.1,159.29,159.24,8.6148]
[1762604461167,3.1,159.29,159.17,3.04]
[1762604461352,2.89,159.28,159.22,3.04]
[1762604461556,0.04462167,159.24,159.22,3.04]
[1762604461756,0.04462167,159.24,159.22,8.6953]
[1762604462063,0.04462167,159.24,159.23,3.04]
[1762604464364,2.89,159.3,159.26,3.04]
[1762604464562,2.89,159.3,159.23,3.04]
[1762604465065,2.89,159.29,159.23,8.6951]
[1762604465465,0.04149951,159.28,159.24,3.08064593]
[1762604465769,0.04185609,159.28,159.24,3.08064593]
[1762604465959,0.04185609,159.28,159.26,3.04]
[1762604466567,0.04185609,159.28,159.26,8.694]
[1762604466767,0.04185609,159.28,159.27,3.04]
[1762604467859,2.89,159.33,159.29,3.04]
[1762604468368,2.89,159.33,159.29,8.693]
[1762604468669,2.89,159.33,159.29,8.73781106]
[1762604469372,6.09013863,159.34,159.3,3.04]
[1762604469874,2.89,159.33,159.3,3.04]
[1762604470369,2.89,159.33,159.29,3.08481106]
[1762604471265,2.89,159.33,159.3,3.04]
[1762604472068,2.89,159.33,159.3,8.6926]
[1762604472267,2.89,159.34,159.31,3.04]
[1762604473070,2.89,159.37,159.32,3.04]
[1762604473268,2.89,159.39,159.34,3.04]
[1762604473466,2.89,159.39,159.35,3.08089114]
[1762604473661,5.73645031,159.44,159.35,3.08011354]
[1762604473868,2.89,159.42,159.35,3.08011354]
[1762604474165,7.71318537,159.41,159.37,3.08400771]
[1762604474473,2.89,159.44,159.37,3.08614298]
[1762604474673,7.71309761,159.43,159.39,0.04813862]
[1762604474874,2.89,159.43,159.4,3.04]
[1762604475070,2.89,159.43,159.39,0.04813862]
[1762604475463,2.89,159.43,159.39,3.08813862]
[1762604479176,8.5372,159.46,159.4,3.04]
[1762604479377,2.89,159.44,159.4,3.04]
[1762604480568,2.89,159.44,159.39,0.04813862]
[1762604480979,8.5379,159.44,159.39,0.04813862]
[1762604481378,2.89,159.43,159.39,3.08813862]
[1762604482269,2.89,159.42,159.39,0.04813862]
[1762604482975,2.89,159.41,159.39,0.04813862]
[1762604483575,2.89,159.41,159.31,3.04]
[1762604483576,2.89,159.38,159.31,3.04]
[1762604483788,2.89,159.38,159.28,3.04]
[1762604483977,2.89,159.34,159.28,3.04]
[1762604484582,2.89,159.32,159.29,0.04569013]
[1762604484885,2.93717977,159.32,159.29,0.04788775]
[1762604486576,2.93717977,159.32,159.29,3.08788775]
[1762604486880,0.04717977,159.32,159.29,3.08788775]
[1762604488083,2.89,159.39,159.29,3.08788775]
[1762604488284,2.89,159.39,159.29,3.04]
[1762604488584,2.89,159.36,159.29,8.693]
[1762604488885,2.89,159.36,159.31,0.04149963]
[1762604489477,8.5407,159.36,159.31,0.04149963]
[1762604489678,2.89,159.35,159.31,0.04149963]
[1762604489873,2.04282628,159.33,159.31,0.04149963]
[1762604490284,4.93282628,159.35,159.31,3.08149963]
[1762604490791,2.89,159.39,159.31,8.73369963]
[1762604490978,4.93282628,159.36,159.33,0.04755504]
[1762604491180,3.0,159.35,159.33,0.0422983]
[1762604493990,2.04282628,159.36,159.33,0.0422983]
[1762604494286,5.04282628,159.36,159.33,0.0422983]
[1762604494989,64.0,159.4,159.33,8.7437983]
[1762604494990,2.04282628,159.38,159.33,8.7437983]
[1762604495201,5.04282628,159.38,159.34,3.05]
[1762604496292,2.04282628,159.38,159.35,3.05]
[1762604496498,3.0,159.41,159.35,3.05]
[1762604496682,5.04282628,159.4,159.36,3.09210854]
[1762604496888,5.04282628,159.4,159.36,3.09758256]
[1762604497889,2.04282628,159.38,159.36,0.04758256]
[1762604498194,3.0,159.37,159.35,0.04554167]
[1762604500402,3.0,159.41,159.35,3.09554167]
[1762604500591,3.0,159.39,159.36,0.04470953]
[1762604500790,3.0,159.37,159.36,0.04362773]
[1762604500995,3.0,159.37,159.35,0.04457356]
[1762604501498,5.04282628,159.38,159.35,3.09457356]
[1762604501894,5.04282628,159.38,159.35,8.74547356]
[1762604502491,2.04282628,159.38,159.35,8.74547356]
[1762604502696,2.04282628,159.4,159.35,8.74547356]
[1762604502897,3.09,159.39,159.36,0.04615919]
[1762604504203,5.13282628,159.39,159.36,0.04615919]
[1762604504502,3.09,159.38,159.36,0.04615919]
[1762604504993,3.09,159.4,159.36,0.04615919]
[1762604505197,5.649,159.41,159.36,0.04615919]
[1762604505198,3.09,159.38,159.36,0.04615919]
[1762604510397,2.04282628,159.37,159.3,3.1]
[1762604510699,5.76781379,159.42,159.22,5.14282628]
[1762604510700,3.09,159.31,159.22,5.14282628]
[1762604510898,2.04282628,159.28,159.22,3.1]
[1762604511103,3.09,159.25,159.21,22.36624183]
[1762604511296,2.04282628,159.26,159.22,3.1]
[1762604511498,2.08584979,159.26,159.22,3.14342008]
[1762604511901,2.08584979,159.26,159.22,8.79882008]
[1762604512105,0.04302351,159.26,159.23,3.1]
[1762604513018,0.04302351,159.26,159.24,5.6547]
[1762604513310,0.04302351,159.26,159.23,3.1]
[1762604513911,0.04302351,159.26,159.23,8.755]
[1762604517408,0.04302351,159.26,159.24,5.6548]
[1762604517805,0.04302351,159.26,159.25,3.1]
[1762604521312,0.04302351,159.26,159.24,5.6548]
[1762604521816,3.03302351,159.26,159.22,8.82882008]
[1762604522214,3.03302351,159.26,159.22,3.17342008]
[1762604522414,0.04302351,159.26,159.25,3.13]
[1762604522911,66.99,159.32,159.28,3.13]
[1762604523113,2.99,159.32,159.28,3.13]
[1762604523307,2.99,159.32,159.2,18.79590804]
[1762604523510,2.99,159.32,159.27,8.7837]
[1762604523909,2.99,159.32,159.28,3.13]
[1762604524107,0.02153169,159.31,159.29,5.653]
[1762604524312,3.01153169,159.31,159.28,3.17669345]
[1762604524808,0.02153169,159.31,159.28,3.17669345]
[1762604525508,0.02153169,159.31,159.3,3.13]
[1762604527408,2.99,159.37,159.33,3.13]
[1762604527613,2.99,159.4,159.33,3.13]
[1762604528320,2.99,159.4,159.35,0.04209478]
[1762604528821,2.99,159.4,159.35,8.82299478]
[1762604529017,2.99,159.4,159.35,3.17209478]
[1762604529321,2.99,159.4,159.36,5.6506]
[1762604530023,2.99,159.4,159.35,3.17209478]
[1762604531218,2.99,159.4,159.35,8.82299478]
[1762604532513,2.99,159.4,159.36,5.6505]
[1762604533423,2.99,159.4,159.35,3.17209478]
[1762604534320,2.04155411,159.39,159.35,3.17209478]
[1762604534721,5.03155411,159.39,159.35,3.17209478]
[1762604535026,5.03155411,159.39,159.35,8.82289478]
[1762604536622,2.99,159.38,159.35,0.04209478]
[1762604536829,2.99,159.36,159.28,3.13]
[1762604537125,5.03155411,159.34,159.28,3.13]
[1762604537516,2.04155411,159.34,159.31,3.13]
[1762604537717,2.04155411,159.4,159.32,2.04155411]
[1762604537924,64.0,159.41,159.33,3.13]
[1762604538119,0.03965999,159.38,159.36,8.7805]
[1762604538322,0.03965999,159.38,159.37,3.13]
[1762604538728,0.03965999,159.38,159.36,5.6505]
[1762604538923,0.03965999,159.38,159.36,8.7805]
[1762604540227,0.03965999,159.38,159.36,3.13]
[1762604540735,0.03965999,159.38,159.36,8.7804]
[1762604541037,0.03965999,159.38,159.37,3.13]
[1762604544834,2.99,159.43,159.4,3.13]
[1762604545041,2.99,159.43,159.39,5.6495]
[1762604545239,2.99,159.43,159.37,5.17155411]
[1762604546044,2.99,159.43,159.38,3.17173248]
[1762604546246,2.99,159.43,159.39,3.13]
[1762604547743,2.99,159.43,159.39,8.7795]
[1762604548239,2.99,159.43,159.4,8.7791]
[1762604548650,2.99,159.43,159.4,3.13]
[1762604550246,2.04155411,159.42,159.39,5.6495]
[1762604550451,2.99,159.41,159.38,0.04173248]
[1762604551150,3.12,159.42,159.39,3.13]
[1762604551753,3.12,159.42,159.39,8.7795]
[1762604551952,3.12,159.42,159.39,3.13]
[1762604554753,3.12,159.42,159.38,0.04173248]
[1762604555150,3.12,159.4,159.38,0.04173248]
[1762604555655,8.7693,159.4,159.38,0.04173248]
[1762604555855,3.12,159.39,159.38,0.04173248]
[1762604557468,3.1887628,159.41,159.34,5.6511]
[1762604557469,3.12,159.37,159.34,5.6511]
[1762604558463,3.16379198,159.37,159.34,0.0405492]
[1762604559266,3.12,159.36,159.34,0.0405492]
[1762604566463,64.04379198,159.37,159.34,3.1305492]
[1762604566771,2.97,159.36,159.34,0.0405492]
[1762604568470,2.97,159.34,159.26,3.09]
[1762604568671,4.91707281,159.33,159.27,8.7437]
[1762604568870,68.78781379,159.37,159.27,8.7437]
[1762604569063,2.97,159.33,159.27,3.09]
[1762604569269,4.91835256,159.32,159.27,3.09]
[1762604569472,3.01147478,159.31,159.28,0.04555268]
[1762604569772,0.04147478,159.31,159.28,3.13555268]
[1762604572066,0.04147478,159.31,159.3,3.09]
[1762604579178,0.04147478,159.31,159.29,5.653]
[1762604579179,66.97,159.37,159.33,3.09]
[1762604579777,3.1887628,159.4,159.34,8.7413]
[1762604579975,3.1887628,159.4,159.35,3.09]
[1762604580177,0.04324169,159.39,159.36,0.04510579]
[1762604581785,2.99,159.38,159.36,0.04510579]
[1762604584585,2.99,159.36,159.32,5.6517]
[1762604584787,2.99,159.36,159.29,2.98]
[1762604585290,2.99,159.35,159.32,8.632]
[1762604585590,3.03415209,159.35,159.32,8.67645233]
[1762604586187,3.03415209,159.35,159.32,0.04445233]
[1762604586781,8.68525209,159.35,159.32,0.04445233]
[1762604586985,3.03415209,159.35,159.32,0.04445233]
[1762604587189,0.04415209,159.35,159.32,3.02445233]
[1762604587687,3.03415209,159.35,159.32,3.02445233]
[1762604587887,3.03415209,159.35,159.32,0.04445233]
[1762604588687,3.03415209,159.35,159.32,8.67645233]
[1762604589079,3.03415209,159.35,159.33,5.6516]
[1762604589288,3.03415209,159.35,159.32,3.02445233]
[1762604589487,3.03415209,159.35,159.32,0.04445233]
[1762604589890,3.03415209,159.35,159.32,5.69645233]
[1762604590094,3.03415209,159.35,159.32,8.67645233]
[1762604590484,3.03415209,159.35,159.32,0.04445233]
[1762604590982,4.91117973,159.34,159.32,0.04445233]
[1762604591186,2.99,159.33,159.32,0.04445233]
[1762604595596,7.90101918,159.33,159.32,0.04445233]
[1762604595894,7.90102004,159.33,159.32,0.04445233]
[1762604596296,2.99,159.33,159.32,0.04445233]
[1762604596591,7.90175829,159.33,159.32,0.04445233]
[1762604597297,2.99,159.33,159.32,0.04445233]
[1762604598398,7.90278214,159.33,159.32,0.04445233]
[1762604605004,12.29862779,159.33,159.32,0.04445233]
[1762604605192,2.99,159.31,159.27,8.6336]
[1762604606204,3.03568063,159.31,159.27,8.67897721]
[1762604607305,2.99,159.3,159.27,3.02537721]
[1762604610813,2.99,159.3,159.27,8.67917721]
[1762604612814,2.99,159.3,159.27,3.02537721]
[1762604613016,2.99,159.3,159.27,0.04537721]
[1762604613511,3.02,159.29,159.27,0.04537721]
[1762604614012,3.02,159.28,159.27,0.04537721]
[1762604614609,7.89258783,159.28,159.27,0.04537721]
[1762604615317,3.02,159.26,159.21,8.7957]
[1762604615501,3.02,159.26,159.22,3.14]
[1762604616413,3.06397623,159.26,159.22,3.18663925]
[1762604617918,3.06397623,159.26,159.23,3.14]
[1762604618611,0.04397623,159.26,159.23,3.14]
[1762604618804,0.04397623,159.26,159.25,3.14]
[1762604619413,3.02,159.33,159.26,3.14]
[1762604619611,3.02,159.33,159.27,3.14]
[1762604619807,3.02,159.36,159.29,3.14]
[1762604620110,3.02,159.37,159.31,3.14]
[1762604620315,3.02,159.35,159.32,0.04212022]
[1762604620807,3.02,159.33,159.32,0.04212022]
[1762604621014,3.02,159.32,159.25,3.14]
[1762604622016,3.06696177,159.3,159.27,0.04684359]
[1762604622515,3.06696177,159.3,159.27,3.18684359]
[1762604628214,3.06696177,159.3,159.27,0.04684359]
[1762604629317,3.02,159.28,159.27,0.04684359]
[1762604633809,3.06696177,159.3,159.27,0.04684359]
[1762604635024,3.02,159.29,159.27,0.04684359]
[1762604636219,3.06696177,159.3,159.27,3.13684359]
[1762604636421,0.04696177,159.3,159.27,3.13684359]
[1762604636717,3.06696177,159.3,159.27,3.13684359]
[1762604637024,3.06696177,159.3,159.27,8.79064359]
[1762604638020,3.06696177,159.3,159.28,3.09]
[1762604640018,0.04696177,159.3,159.28,3.09]
[1762604640224,0.04696177,159.3,159.28,8.7434]
[1762604641818,3.05696177,159.3,159.28,8.7434]
[1762604642425,3.05696177,159.3,159.27,0.04684359]
[1762604644126,3.01,159.28,159.27,0.04684359]
[1762604646621,7.9105805,159.28,159.27,0.04684359]
[1762604646820,3.01,159.26,159.2,3.19]
[1762604647733,0.04140965,159.25,159.21,0.04271126]
[1762604647927,0.04140965,159.25,159.22,3.19]
[1762604648231,3.05140965,159.25,159.22,3.19]
[1762604650326,0.04140965,159.25,159.21,3.23271126]
[1762604650527,0.04140965,159.25,159.21,2.08625894]
[1762604650731,0.04140965,159.25,159.22,3.19]
[1762604651934,0.04140965,159.25,159.22,8.8455]
[1762604652129,0.04140965,159.25,159.23,3.19]
[1762604655634,0.04140965,159.25,159.23,8.8452]
[1762604655823,0.04140965,159.25,159.23,3.19]
[1762604656340,3.05140965,159.25,159.23,3.19]
[1762604659036,3.05140965,159.25,159.21,0.04271126]
[1762604659243,3.05140965,159.25,159.21,3.23271126]
[1762604661040,3.05140965,159.25,159.22,3.19]
[1762604662650,3.05140965,159.25,159.22,8.8456]
[1762604662849,3.05140965,159.25,159.22,3.19]
[1762604667857,3.01,159.24,159.22,3.19]
[1762604668947,3.01,159.24,159.21,0.04271126]
[1762604669352,3.01,159.24,159.21,3.23271126]
[1762604671349,3.01,159.24,159.21,8.88861126]
[1762604673067,3.01,159.24,159.21,0.04271126]
[1762604673356,2.91,159.22,159.15,2.99]
[1762604673549,2.91,159.2,159.15,2.99]
[1762604674152,2.95545302,159.19,159.16,3.03415081]
[1762604674457,2.95553781,159.19,159.16,3.03007798]
[1762604675947,2.95553781,159.19,159.17,2.99]
[1762604676960,2.95553781,159.19,159.17,8.6473]
[1762604677156,0.04553781,159.19,159.18,2.99]
[1762604678060,2.95553781,159.19,159.16,0.04007798]
[1762604680163,2.91,159.18,159.16,0.04007798]
[1762604680353,2.91,159.18,159.16,3.03007798]
[1762604680552,0.04553781,159.19,159.16,3.03007798]
[1762604681967,0.04553781,159.19,159.16,8.68777798]
[1762604682263,0.04553781,159.19,159.17,2.99]
[1762604682450,2.95553781,159.19,159.17,2.99]
[1762604682655,0.04553781,159.19,159.17,2.99]
[1762604683257,3.05553781,159.19,159.16,0.04007798]
[1762604683457,3.05553781,159.19,159.16,2.93007798]
[1762604685169,0.04553781,159.19,159.16,8.58767798]
[1762604685468,0.04553781,159.19,159.17,2.89]
[1762604685657,3.05553781,159.19,159.16,0.04007798]
[1762604685860,3.05553781,159.19,159.16,2.93007798]
[1762604686060,0.04553781,159.19,159.16,2.93007798]
[1762604687264,3.05553781,159.19,159.16,2.93007798]
[1762604687663,3.01,159.18,159.16,0.04007798]
[1762604688275,3.01,159.18,159.16,2.93007798]
[1762604688972,5.70223781,159.19,159.16,2.93007798]
[1762604688973,0.04553781,159.19,159.16,2.93007798]
[1762604690367,8.71233781,159.19,159.16,2.93007798]
[1762604690571,3.01,159.18,159.16,2.93007798]
[1762604691264,3.01,159.18,159.16,0.04007798]
[1762604693070,5.70233781,159.19,159.16,2.93007798]
[1762604693375,3.05553781,159.19,159.16,2.93007798]
[1762604694065,0.04553781,159.19,159.16,2.93007798]
[1762604694974,0.04553781,159.19,159.18,2.89]
[1762604697074,3.01,159.26,159.18,2.89]
[1762604697673,8.6643,159.26,159.2,2.89]
[1762604697974,3.05325458,159.25,159.22,2.89]
[1762604698172,8.70795458,159.25,159.21,0.04538957]
[1762604698479,3.01,159.24,159.21,0.04538957]
[1762604698669,3.01,159.24,159.21,2.93538957]
[1762604699374,5.69795458,159.25,159.21,2.93538957]
[1762604699575,0.04325458,159.25,159.21,2.93538957]
[1762604700270,3.05325458,159.25,159.21,2.93538957]
[1762604701976,3.02,159.24,159.21,0.04538957]
[1762604702279,3.02,159.24,159.21,3.00538957]
[1762604702474,0.04325458,159.25,159.21,3.00538957]
[1762604702780,3.06325458,159.25,159.21,3.00538957]
[1762604703382,0.04325458,159.25,159.21,3.00538957]
[1762604704984,0.04325458,159.25,159.23,2.96]
[1762604705576,0.04325458,159.25,159.23,8.6151]
[1762604705776,0.04325458,159.25,159.24,2.96]
[1762604707388,8.86356504,159.34,159.27,5.6537]
[1762604707580,10.86468059,159.36,159.27,5.6537]
[1762604707581,7.97332891,159.33,159.28,2.96]
[1762604707776,3.04,159.33,159.28,2.96]
[1762604708288,5.6515,159.34,159.29,2.96]
[1762604708489,8.01171045,159.33,159.3,3.00641116]
[1762604708785,3.08089141,159.33,159.3,3.00641116]
[1762604709490,0.04089141,159.33,159.3,3.00641116]
[1762604712282,0.04089141,159.33,159.3,8.65901116]
[1762604712480,0.04089141,159.33,159.31,2.96]
[1762604712886,3.04,159.4,159.31,2.96]
[1762604713188,3.04,159.4,159.35,2.96]
[1762604713785,0.04110301,159.39,159.37,2.96]
[1762604716384,0.04110301,159.39,159.38,2.96]
[1762604721192,3.04,159.45,159.38,2.96]
[1762604722088,3.04,159.45,159.39,2.96]
[1762604722288,0.0456852,159.43,159.41,2.96]
[1762604722985,3.0856852,159.43,159.4,3.00086519]
[1762604727394,3.04,159.42,159.4,0.04086519]
[1762604727996,3.04,159.41,159.4,0.04086519]
[1762604728188,3.0856852,159.43,159.4,3.00086519]
[1762604728399,3.0856852,159.43,159.4,0.04086519]
[1762604728602,3.0856852,159.43,159.4,3.00086519]
[1762604732400,3.19485034,159.42,159.4,0.04086519]
[1762604732699,3.03,159.41,159.35,3.1]
[1762604733498,0.04623297,159.4,159.36,0.04586382]
[1762604733701,0.04623297,159.4,159.37,3.1]
[1762604734398,2.04141715,159.39,159.37,3.1]
[1762604735299,0.04623297,159.4,159.37,3.1]
[1762604736898,0.04623297,159.4,159.37,8.7502]
[1762604737100,0.04623297,159.4,159.38,3.1]
[1762604743020,0.04623297,159.4,159.38,8.7498]
[1762604743222,0.04623297,159.4,159.39,2.97]
[1762604753331,4.95810049,159.4,159.37,2.97]
[1762604753631,2.08765012,159.4,159.37,2.97]
[1762604753824,0.04623297,159.4,159.37,2.97]
[1762604754932,0.04623297,159.4,159.38,2.97]
[1762604756630,4.92324977,159.39,159.38,2.97]
[1762604756926,0.04623297,159.4,159.38,2.97]
[1762604757231,4.93000853,159.39,159.38,2.97]
[1762604760130,3.09623297,159.4,159.38,2.97]
[1762604760326,4.92838475,159.39,159.37,2.97]
[1762604760525,3.09623297,159.4,159.37,2.97]
[1762604760726,4.9279034,159.39,159.37,2.97]
[1762604760935,3.09623297,159.4,159.37,2.97]
[1762604761131,4.92790761,159.39,159.37,2.97]
[1762604761436,3.09623297,159.4,159.37,2.97]
[1762604761733,4.92772304,159.39,159.37,2.97]
[1762604761925,3.09623297,159.4,159.37,2.97]
[1762604762125,4.92874038,159.39,159.37,2.97]
[1762604762327,3.09623297,159.4,159.37,2.97]
[1762604762632,4.92847494,159.39,159.37,2.97]
[1762604762834,3.09623297,159.4,159.37,2.97]
[1762604763138,4.92847494,159.39,159.38,3.11]
[1762604763432,0.04623297,159.4,159.38,3.11]
[1762604765736,0.04623297,159.4,159.39,3.11]
[1762604767141,4.93141715,159.46,159.42,3.11]
[1762604767436,4.93134725,159.45,159.42,3.11]
[1762604767646,4.93134725,159.44,159.43,3.11]
[1762604768335,0.04006755,159.45,159.43,5.6481]
[1762604768541,0.04006755,159.45,159.44,3.11]
[1762604771441,7.85651925,159.45,159.42,3.15416366]
[1762604771644,0.04006755,159.45,159.42,3.15416366]
[1762604773142,2.93006755,159.45,159.42,3.15416366]
[1762604773442,4.92534804,159.44,159.42,3.15416366]
[1762604773641,2.93006755,159.45,159.42,3.15416366]
[1762604773944,4.92512394,159.44,159.42,3.15416366]
[1762604774137,0.04006755,159.45,159.42,3.15416366]
[1762604775338,4.92464271,159.44,159.42,3.15416366]
[1762604775539,2.89,159.44,159.42,3.15416366]
[1762604775739,2.89,159.44,159.42,0.04416366]
[1762604775936,2.89,159.44,159.42,3.15416366]
[1762604776244,2.93006755,159.45,159.42,3.15416366]